[Event "Budapest Chess Festival 2024"]
[Site "Budapest"]
[Date "2024.05.30"]
[Round "8.12"]
[White "Tzidkiya, Yeshaayahu"]
[Black "Gschnitzer, Adrian"]
[Result "1/2-1/2"]
[ECO "B91"]
[WhiteElo "2468"]
[BlackElo "2431"]
[Annotator "TA"]
[PlyCount "89"]
[EventDate "2024.05.20"]
[EventType "swiss"]
[EventCountry "HUN"]
[SourceTitle "playchess.com"]
[Source "ChessBase"]
[SourceQuality "1"]
[TimeControl "40/5400+30:1800+30"]

{[%evp 24,89,-10,-13,-10,-8,159,164,170,0,0,11,0,16,11,12,18,0,14,0,14,0,19,-43,-33,-45,-31,-110,-103,-104,-112,-122,-122,-135,-132,-151,-152,-138,-127,-172,-169,-206,-167,-198,-177,-179,-130,-197,-126,-143,-108,-123,0,0,0,0,0,0,0,0,0,0,0,0,0,0,0,0]} 1. e4 {[%emt 0:00:32]} c5 {[%emt 0:00:37]} 2. Nf3 {[%emt 0:00:05]} d6 {[%emt 0:00:07]} 3. d4 {[%emt 0:00:06]} cxd4 {[%emt 0:00:06]} 4. Nxd4 {[%emt 0:00:12]} Nf6 {[%emt 0:00:07]} 5. Nc3 {[%emt 0:00:05]} a6 {[%emt 0:00:06]} 6. g3 {[%emt 0:00:09]} e5 {[%emt 0:00:39]} 7. Nb3 {[%emt 0:00:05]} Be7 {[%emt 0:00:47]} 8. Bg2 {[%emt 0:00:05]} O-O {[%emt 0:01:06]} 9. O-O {[%emt 0:02:34]} Be6 {[%emt 0:02:42]} 10. a4 {[%emt 0:03:33]} Nbd7 {[%emt 0:03:57]} 11. Nd5 {[%emt 0:16:37]} Nxd5 {[%emt 0:08:19]} 12. exd5 {[%emt 0:00:04]} Bf5 {[%emt 0:00:08]} 13. a5 {[%emt 0:08:46]} Rc8 {[%emt 0:08:39]} 14. c3 {[%emt 0:00:09]} Bg5 $2 {[%emt 0:17:06]} ({Black should play} 14... h6 $11) 15. f4 $16 {[%emt 0:08:41]} exf4 {[%emt 0:00:44] [#] White is clearly better.} 16. Nd4 $2 {[%emt 0:00:05]} (16. h4 $1 $18 {[%cal Rh4g5]}) 16... f3 $1 $11 {[%emt 0:01:52]} 17. Bxg5 {[%emt 0:32:18]} (17. Qxf3 Bxc1 18. Rfxc1 Bg6 $15) 17... Qxg5 {[%emt 0:00:18]} 18. Qxf3 {[%emt 0:00:03]} Bg4 {[%emt 0:08:01]} 19. Qf4 {[%emt 0:01:21]} Qxf4 {[%emt 0:00:18]} 20. gxf4 {[%emt 0:00:03]} Nf6 {[%emt 0:05:01]} 21. Rfe1 {[%emt 0:14:12]} Rc7 {[%emt 0:14:21]} 22. Kf2 {[%emt 0:04:06]} Rfc8 {[%emt 0:00:49]} 23. Bf3 {[%emt 0:05:46]} (23. Ra4 $11) 23... Bxf3 $15 {[%emt 0:01:36]} 24. Kxf3 {[%emt 0:00:06]} g6 {[%emt 0:00:06][%cal Oc7c5]} (24... Nxd5 25. Nf5 g6 26. Nxd6 $11) 25. Rad1 {[%emt 0:01:02]} (25. Nb3 $1 $15) 25... Rc5 $17 {[%emt 0:07:25]} (25... Nxd5 26. Nb5 axb5 27. Rxd5 $14) 26. Re7 {[%emt 0:00:39]} Rb8 {[%emt 0:00:00]} ({Don't play} 26... Rxa5 $6 27. Rxb7 Rxd5 28. Re1 $15) 27. Ra1 {[%emt 0:00:55]} Kf8 {[%emt 0:01:10]} 28. Re3 {[%emt 0:00:07]} Rxd5 {[%emt 0:01:08]} 29. Ra3 {[%emt 0:00:07]} Rh5 {[%emt 0:00:35] [#] Threatens to win with ...Rh3+.} 30. Re2 {[%emt 0:00:26]} Rc8 {[%emt 0:04:58]} 31. Rd2 {[%emt 0:00:40]} Rc7 {[%emt 0:04:19]} 32. Nc2 {[%emt 0:00:17]} Kg7 {[%emt 0:00:51]} 33. Rb3 {[%emt 0:00:26]} Re7 {[%emt 0:02:02]} 34. Rb6 {[%emt 0:01:23]} d5 {[%emt 0:04:27]} (34... Rxa5 $19 35. Rdxd6 Nd7) 35. Nb4 {[%emt 0:00:12]} (35. Nd4 $17 {was called for.}) 35... Rf5 {[%emt 0:00:59]} (35... Re1 $19 {...Ne4 is the strong threat.} 36. Kg2 (36. Rxb7 $2 {is the wrong capture.} Ne4 $19) 36... Re3) 36. Rd4 {[%emt 0:00:49][%cal Ob6f6]} Rd7 {[%emt 0:01:42]} 37. Nd3 {[%emt 0:00:30]} Rc7 {[%emt 0:00:37] Prevents Nc5.} ({Better is} 37... Rh5 $17 {[%cal Od7e7]} 38. Kg2 Re7) 38. Rdb4 $11 {[%emt 0:00:17] The position is equal.} d4 {[%emt 0:00:34] ...Nd5 would now be deadly.} 39. Rxb7 {[%emt 0:01:16]} Rxb7 {[%emt 0:00:17]} 40. Rxb7 {[%emt 0:00:00]} dxc3 {[%emt 0:00:00]} 41. bxc3 {[%emt 0:00:07]} Rxa5 {[%emt 0:15:33] KRN-KRN} 42. Ne5 {[%emt 0:08:47]} Kg8 {[%emt 0:00:35]} 43. Rb8+ {[%emt 0:04:37]} Kg7 {[%emt 0:00:03]} 44. Rb7 {[%emt 0:00:04]} Kg8 {[%emt 0:00:05]} 45. Rb8+ {[%emt 0:00:02] Whites escaped into a draw.   Weighted Error Value: White=0.24 (precise) /Black=0.23 (precise) .  Mistake:       	White=4     	Black=4      Inaccurate:     	White=1     	---        OK:         	White=9     	Black=16     Best:        	White=4     	Black=2      Strong:       	---       	Black=1} 1/2-1/2

[Event "Budapest Chess Festival 2024"]
[Site "Budapest"]
[Date "2024.05.30"]
[Round "8.13"]
[White "Sahib Singh"]
[Black "Kozak, Adam"]
[Result "0-1"]
[ECO "C96"]
[WhiteElo "2291"]
[BlackElo "2607"]
[Annotator "TA"]
[PlyCount "86"]
[EventDate "2024.05.20"]
[EventType "swiss"]
[EventCountry "HUN"]
[SourceTitle "playchess.com"]
[Source "ChessBase"]
[SourceQuality "1"]
[TimeControl "40/5400+30:1800+30"]

{[%evp 22,86,31,12,22,18,23,5,22,0,0,-45,-50,-56,-63,-119,-98,-161,-152,-173,-153,-212,-188,-229,-223,-258,-196,-210,-179,-205,-190,-205,-172,-323,-201,-210,-199,-221,-185,-222,-224,-196,-204,-198,-212,-291,-297,-306,-305,-414,-413,-543,-540,-625,-570,-1315,-1256,-29994,-29995,-29995,-29996,-29996,-29997,-29997,-29997,-29997,-940]} 1. e4 {[%emt 0:00:34]} e5 {[%emt 0:00:42]} 2. Nf3 {[%emt 0:00:11]} Nc6 {[%emt 0:00:05]} 3. Bb5 {[%emt 0:00:10]} a6 {[%emt 0:00:14]} 4. Ba4 {[%emt 0:00:11]} Nf6 {[%emt 0:00:09]} 5. O-O {[%emt 0:00:10]} Be7 {[%emt 0:00:09]} 6. Re1 {[%emt 0:00:12]} b5 {[%emt 0:00:24]} 7. Bb3 {[%emt 0:00:09]} d6 {[%emt 0:00:51]} 8. c3 {[%emt 0:00:12]} O-O {[%emt 0:00:13]} 9. h3 {[%emt 0:00:11]} Na5 {[%emt 0:00:38]} 10. Bc2 {[%emt 0:00:13]} c5 {[%emt 0:00:05]} 11. d4 {[%emt 0:00:11]} Nd7 {[%emt 0:00:51]} 12. d5 {[%emt 0:04:27]} Nb6 {[%emt 0:00:54]} 13. Nbd2 {[%emt 0:03:37]} g6 {[%emt 0:01:11]} 14. Nf1 {[%emt 0:17:50]} f5 {[%emt 0:00:08] The position is equal.} 15. exf5 {[%emt 0:05:38]} gxf5 {[%emt 0:02:18]} 16. N3h2 {[%emt 0:00:14]} Bg5 {[%emt 0:04:38]} 17. Ne3 {[%emt 0:18:49]} Ra7 {[%emt 0:11:55]} 18. Kh1 {[%emt 0:10:31]} (18. Qh5 $15) 18... Rg7 $17 {[%emt 0:05:37] Black is more active.} 19. Rg1 {[%emt 0:04:52]} (19. Nf3 $17 {was called for.}) 19... f4 $19 {[%emt 0:05:31]} 20. Nef1 {[%emt 0:00:07] [#]} Bb7 $1 {[%emt 0:01:03]} 21. b4 {[%emt 0:08:49]} (21. a4 $17 {might work better.} Nxd5 (21... Bxd5 22. axb5 axb5 23. Rxa5 $18) 22. axb5 axb5 23. Nd2) 21... cxb4 {[%emt 0:01:29]} 22. cxb4 {[%emt 0:00:06]} Nac4 {[%emt 0:00:08][%cal Og5h4] Threatens to win with ...Bh4!} 23. Nd2 {[%emt 0:02:48]} Nxd2 {[%emt 0:07:03]} (23... Bxd5 24. a4 $19) 24. Qxd2 {[%emt 0:01:05]} Bxd5 {[%emt 0:07:03] ...f3 is the strong threat.} (24... Nxd5 $2 25. Bb3 $18) 25. Bb3 {[%emt 0:00:40]} Bf7 {[%emt 0:03:35]} 26. Rd1 {[%emt 0:03:21]} Rg6 {[%emt 0:02:57][%cal Of4f3] aiming for ...f3!} 27. Bc2 $2 {[%emt 0:02:00]} (27. Qe2) 27... Nc4 {[%emt 0:08:44]} 28. Qe2 {[%emt 0:06:53]} Rg7 {[%emt 0:00:39]} 29. a4 {[%emt 0:00:17]} Kh8 {[%emt 0:12:47]} 30. Be4 {[%emt 0:01:09]} d5 {[%emt 0:11:31]} 31. axb5 {[%emt 0:02:10]} axb5 {[%emt 0:00:10]} 32. Bb2 {[%emt 0:02:55]} Qd6 {[%emt 0:07:34]} 33. Bd3 {[%emt 0:03:41]} Nxb2 {[%emt 0:02:34]} (33... Qxb4 $2 {is the wrong capture.} 34. Bxc4 $18 (34. Bxe5 Nxe5 35. Qxe5 Re8 $11) (34. Bxe5 Nxe5 35. Qxe5 Re8 $15)) 34. Qxb2 {[%emt 0:00:09]} Bf6 {[%emt 0:02:51]} 35. Qb1 {[%emt 0:01:21]} Qb6 {[%emt 0:00:13]} ({Weaker is} 35... e4 36. Bxe4 Bxa1 37. Qxa1 $19) 36. Ra5 {[%emt 0:00:44]} e4 {[%emt 0:00:35]} 37. Bxb5 {[%emt 0:00:18]} Qxf2 {[%emt 0:00:35][%csl Gg7][%cal Rf2g2]} 38. Ng4 {[%emt 0:01:03] [#]} Rxg4 {[%emt 0:00:46][%mdl 512]} 39. hxg4 {[%emt 0:00:05]} (39. Ra2 Qh4) 39... f3 {[%emt 0:00:13] Black mates.} 40. gxf3 {[%emt 0:00:00]} Qxf3+ {[%emt 0:00:00]} 41. Kg1 {[%emt 0:00:57] White is weak on the dark squares} Qxg4+ {[%emt 0:00:36]} 42. Kf1 {[%emt 0:00:46]} Qf3+ {[%emt 0:00:12]} 43. Ke1 {[%emt 0:00:07]} Bc3+ {[%emt 0:00:26] White did not feel at home in the position after the opening.   Weighted Error Value: White=0.75/Black=0.10 (very precise) .  Mistake:       	White=4     	---        Inaccurate:     	White=6     	Black=1      OK:         	White=5     	Black=15     Best:        	---       	Black=1      Strong:       	---       	Black=1} 0-1

[Event "Budapest Chess Festival 2024"]
[Site "Budapest"]
[Date "2024.05.30"]
[Round "8.14"]
[White "Dragnev, Valentin"]
[Black "Aizenberg, Benny"]
[Result "1-0"]
[ECO "B40"]
[WhiteElo "2566"]
[BlackElo "2403"]
[Annotator "TA"]
[PlyCount "103"]
[EventDate "2024.05.20"]
[EventType "swiss"]
[EventCountry "HUN"]
[SourceTitle "playchess.com"]
[Source "ChessBase"]
[SourceQuality "1"]
[TimeControl "40/5400+30:1800+30"]

{[%evp 11,103,0,0,0,0,4,0,8,6,6,23,0,52,49,42,47,79,62,60,54,85,83,74,80,118,95,138,137,189,192,185,204,179,162,211,205,218,218,241,218,218,227,227,240,268,259,276,274,271,247,269,264,267,214,212,189,208,190,275,202,207,0,220,208,216,187,329,306,416,379,377,381,385,365,578,524,575,672,1019,1015,929,711,706,695,711,621,902,941,1821,1961,29991,29992,29992,29993]} 1. e4 {[%emt 0:00:31]} c5 {[%emt 0:00:36]} 2. Nf3 {[%emt 0:00:07]} e6 {[%emt 0:00:03]} 3. a3 {[%emt 0:00:45]} Nc6 {[%emt 0:00:50]} 4. Nc3 {[%emt 0:00:22]} Nf6 {[%emt 0:02:46]} 5. d4 {[%emt 0:00:27]} cxd4 {[%emt 0:00:05]} 6. Nxd4 {[%emt 0:00:05]} Be7 {[%emt 0:00:05]} 7. Nxc6 {[%emt 0:00:24]} bxc6 {[%emt 0:00:07]} 8. e5 {[%emt 0:00:41]} Nd5 {[%emt 0:00:05]} 9. Qg4 {The position is equal.} g6 {[%emt 0:00:06]} 10. Qg3 {[%emt 0:00:40]} Qb6 {[%emt 0:07:39]} 11. Ne4 {[%emt 0:07:34]} f5 {[%emt 0:08:52]} (11... Qd4 $11 12. Nd6+ Bxd6 13. exd6 Qe4+ 14. Kd1 Qd4+ 15. Ke1 Qe4+ 16. Kd1 Qd4+ 17. Ke1 Qe4+ 18. Kd1) 12. Nd6+ $14 {[%emt 0:04:59]} Bxd6 {[%emt 0:00:48]} 13. exd6 {[%emt 0:00:03]} Ba6 {[%emt 0:08:51]} 14. c4 {[%emt 0:08:38]} Nf6 {[%emt 0:00:13]} 15. Qc3 $1 {[%emt 0:01:40]} O-O {[%emt 0:03:19]} 16. Bh6 {[%emt 0:06:22]} Rf7 {[%emt 0:02:27] [#]} 17. f3 {[%emt 0:00:36] Prevents Ne4.} c5 {[%emt 0:05:19]} 18. O-O-O {[%emt 0:01:13]} Ne8 {[%emt 0:07:02] Black is weak on the dark squares} 19. h4 {[%emt 0:09:02][%cal Bh2h4,Bh4h5][%mdl 32] aiming for h5. White is more active.} Rb8 {[%emt 0:09:25] [#]} (19... Ng7 $16 20. Bd3 Bb7) 20. h5 $1 $18 {[%emt 0:04:57]} Qb3 {[%emt 0:01:06]} 21. Qxb3 {[%emt 0:02:25]} Rxb3 {[%emt 0:00:07]} 22. Bf4 {[%emt 0:01:01]} gxh5 {[%emt 0:09:07]} (22... Nf6 {was worth a try.}) 23. Rxh5 {[%emt 0:01:25]} Rg7 {[%emt 0:00:21]} 24. Kc2 {[%emt 0:02:39]} Rb6 {[%emt 0:00:34]} 25. Kc3 {[%emt 0:03:02]} Rc6 {[%emt 0:05:15]} 26. Be5 {[%emt 0:01:32] Prevents Nf6} Rg6 {[%emt 0:00:10]} 27. g4 {[%emt 0:08:01]} Ng7 {[%emt 0:02:18]} 28. Rh4 {[%emt 0:01:19] Hoping for Bd3.} Rc8 {[%emt 0:03:41]} 29. Bd3 {[%emt 0:06:33]} Bb7 {[%emt 0:01:00]} 30. Rh3 {[%emt 0:03:19]} Rf8 {[%emt 0:06:09]} 31. Rg1 {[%emt 0:00:59]} h6 {[%emt 0:00:49]} 32. Kd2 {[%emt 0:06:55]} a5 {[%emt 0:04:29]} 33. a4 {[%emt 0:05:36]} Bc6 {[%emt 0:01:27]} 34. b3 {[%emt 0:01:27]} Rb8 {[%emt 0:02:31]} (34... Rg5 $142) 35. Kc2 {[%emt 0:04:15]} Rf8 {[%emt 0:02:04]} 36. Kd2 $2 {[%emt 0:01:35]} ({White should try} 36. Rgg3 $18 {gxf5 would now be deadly.} Kf7 37. Rh4) 36... Bb7 $2 {[%emt 0:02:50]} (36... Rb8 $1 $11 {and Black is okay.}) 37. Bc3 {[%emt 0:03:19]} Bc6 {[%emt 0:00:55]} 38. Rhg3 {[%emt 0:00:28] Strongly threatening gxf5.} Rf7 {[%emt 0:02:02]} (38... Kf7 $142 39. Bxa5 Rg8) 39. Bxa5 {[%emt 0:01:11]} h5 {[%emt 0:00:43][%cal Bh6h5,Bh5h4][%mdl 32]} 40. Bc3 {[%emt 0:00:00]} h4 {[%emt 0:00:00]} 41. Rh3 {[%emt 0:04:46]} Rg5 {[%emt 0:05:22]} 42. Be2 {[%emt 0:03:43]} fxg4 {[%emt 0:06:35]} (42... e5 $142 43. Rxh4 (43. Bxe5 fxg4 44. Bxg7 gxh3 $11) 43... f4) 43. Rxg4 {[%emt 0:00:38]} Rxg4 {[%emt 0:00:13]} 44. fxg4 {[%emt 0:00:02]} Rf2 {[%emt 0:00:47]} 45. Ke3 {[%emt 0:00:51]} Rg2 {[%emt 0:00:30]} 46. Rxh4 {[%emt 0:00:13]} Rg3+ {[%emt 0:00:10]} 47. Kd2 {[%emt 0:00:05]} e5 {[%emt 0:01:31]} 48. a5 {[%emt 0:01:27]} Ne6 {[%emt 0:00:47]} 49. Bxe5 {[%emt 0:04:10]} Rxb3 {[%emt 0:00:28] [#]} 50. g5 $1 {[%emt 0:00:32][%cal Bg4g5,Bg5g6][%mdl 32] White threatens Rh8+ and mate.} Nd4 {[%emt 0:04:00]} (50... Nxg5 51. Rg4) 51. g6 {[%emt 0:01:36][%csl Ge5][%cal Rh4h8]} Rb2+ {[%emt 0:00:06]} 52. Kc1 {[%emt 0:00:18] Weighted Error Value: White=0.14 (very precise) /Black=0.53.  Loses game:     	---       	Black=1      Missed win:     	White=1     	---        Mistake:       	---       	Black=6      Inaccurate:     	---       	Black=6      OK:         	White=18    	Black=11     Best:        	White=1     	Black=3      Strong:       	White=1     	---} 1-0

[Event "Budapest Chess Festival 2024"]
[Site "Budapest"]
[Date "2024.05.30"]
[Round "8.15"]
[White "Tadic, Stefan"]
[Black "Hera, Imre Jr."]
[Result "1/2-1/2"]
[ECO "B42"]
[WhiteElo "2399"]
[BlackElo "2542"]
[Annotator "ChessBase"]
[PlyCount "258"]
[EventDate "2024.05.20"]
[EventType "swiss"]
[EventCountry "HUN"]
[SourceTitle "playchess.com"]
[Source "ChessBase"]
[SourceQuality "1"]
[TimeControl "40/5400+30:1800+30"]

1. e4 {[%emt 0:00:34]} c5 {[%emt 0:01:03]} 2. Nf3 {[%emt 0:00:06]} e6 {[%emt 0:00:09]} 3. d4 {[%emt 0:00:05]} cxd4 {[%emt 0:00:04]} 4. Nxd4 {[%emt 0:00:04]} a6 {[%emt 0:00:07]} 5. Bd3 {[%emt 0:00:05]} Bc5 {[%emt 0:00:23]} 6. Nb3 {[%emt 0:00:05]} Ba7 {[%emt 0:00:10]} 7. Qe2 {[%emt 0:00:04]} Nc6 {[%emt 0:00:18]} 8. Be3 {[%emt 0:00:07]} Bxe3 {[%emt 0:02:21]} 9. Qxe3 {[%emt 0:00:04]} Nf6 {[%emt 0:00:06]} 10. Nc3 {[%emt 0:00:08]} d6 {[%emt 0:01:10]} 11. O-O-O {[%emt 0:02:19]} b5 {[%emt 0:21:19]} 12. Kb1 {[%emt 0:07:32]} e5 {[%emt 0:08:00]} 13. h3 {[%emt 0:08:48]} O-O {[%emt 0:02:49]} 14. f4 {[%emt 0:06:29]} exf4 {[%emt 0:00:23]} 15. Qxf4 {[%emt 0:00:05]} Ne5 {[%emt 0:02:25]} 16. g4 {[%emt 0:01:52]} Bb7 {[%emt 0:03:32]} 17. g5 {[%emt 0:03:10]} Nfd7 {[%emt 0:03:04]} 18. Be2 {[%emt 0:02:34]} Qc7 {[%emt 0:03:44]} 19. Nd4 {[%emt 0:08:44]} Rac8 {[%emt 0:10:59]} 20. Rh2 {[%emt 0:08:12]} Nb6 {[%emt 0:02:31]} 21. Bg4 {[%emt 0:04:44]} Rcd8 {[%emt 0:00:31]} 22. Nf5 {[%emt 0:00:11]} Rfe8 {[%emt 0:04:16]} 23. Nd5 {[%emt 0:07:25]} Bxd5 {[%emt 0:01:03]} 24. exd5 {[%emt 0:00:05]} Qc4 {[%emt 0:02:23]} 25. Qxc4 {[%emt 0:02:02]} bxc4 {[%emt 0:02:08]} 26. Re2 {[%emt 0:08:51]} g6 {[%emt 0:04:39]} 27. Ng3 {[%emt 0:00:53]} h5 {[%emt 0:01:08]} 28. gxh6 {[%emt 0:01:47]} f5 {[%emt 0:00:39]} 29. Bxf5 {[%emt 0:01:40]} gxf5 {[%emt 0:00:07]} 30. Nxf5 {[%emt 0:00:03]} Kh7 {[%emt 0:01:06]} 31. b3 {[%emt 0:03:40]} Nf7 {[%emt 0:03:41]} 32. Rg2 {[%emt 0:07:07]} Nxh6 {[%emt 0:08:25]} 33. Nxh6 {[%emt 0:05:09]} Kxh6 {[%emt 0:00:02]} 34. Rd4 {[%emt 0:06:13]} Kh5 {[%emt 0:01:13]} 35. Rdg4 {[%emt 0:02:14]} c3 {[%emt 0:00:30]} 36. a4 {[%emt 0:00:57]} Re5 {[%emt 0:00:35]} 37. Rg7 {[%emt 0:00:05]} Rh8 {[%emt 0:00:19]} 38. h4 {[%emt 0:00:21]} Rh6 {[%emt 0:01:56]} 39. a5 {[%emt 0:00:34]} Nc8 {[%emt 0:02:07]} 40. R2g5+ {[%emt 0:00:00]} Rxg5 {[%emt 0:00:00]} 41. hxg5 {[%emt 0:04:40]} Rh8 {[%emt 0:04:56]} 42. Rc7 {[%emt 0:13:20]} Kxg5 {[%emt 0:00:15]} 43. Rxc3 {[%emt 0:00:11]} Ne7 {[%emt 0:00:59]} 44. Rc7 {[%emt 0:04:28]} Nxd5 {[%emt 0:00:40]} 45. Rc6 {[%emt 0:00:04]} Rd8 {[%emt 0:16:17]} 46. Rxa6 {[%emt 0:00:45]} Kf5 {[%emt 0:00:10]} 47. Kb2 {[%emt 0:00:53]} Ke5 {[%emt 0:00:28]} 48. c4 {[%emt 0:01:20]} Nf6 {[%emt 0:04:46]} 49. Rc6 {[%emt 0:01:39]} Ne4 {[%emt 0:00:55]} 50. a6 {[%emt 0:02:00]} d5 {[%emt 0:05:48]} 51. cxd5 {[%emt 0:00:23]} Kxd5 {[%emt 0:00:02]} 52. Rc1 {[%emt 0:01:35]} Ra8 {[%emt 0:02:02]} 53. Ra1 {[%emt 0:00:08]} Ra7 {[%emt 0:00:58]} 54. Ra5+ {[%emt 0:01:00]} Kc6 {[%emt 0:00:03]} 55. b4 {[%emt 0:00:05]} Nd6 {[%emt 0:01:11]} 56. Kb3 {[%emt 0:01:17]} Kb6 {[%emt 0:00:05]} 57. Rh5 {[%emt 0:00:06]} Rd7 {[%emt 0:00:32]} 58. Rd5 {[%emt 0:01:49]} Kxa6 {[%emt 0:00:14]} 59. Rd1 {[%emt 0:00:49]} Kb6 {[%emt 0:00:03]} 60. Rd5 {[%emt 0:00:03]} Rd8 {[%emt 0:00:10]} 61. Rd1 {[%emt 0:00:52]} Kc6 {[%emt 0:00:04]} 62. Rc1+ {[%emt 0:00:03]} Kd7 {[%emt 0:00:09]} 63. Rc5 {[%emt 0:00:34]} Rb8 {[%emt 0:00:36]} 64. Rc1 {[%emt 0:00:23]} Nb5 {[%emt 0:00:15]} 65. Rc5 {[%emt 0:00:20]} Nc7 {[%emt 0:01:18]} 66. Rh5 {[%emt 0:00:09]} Rg8 {[%emt 0:01:44]} 67. Rh7+ {[%emt 0:01:24]} Kc6 {[%emt 0:00:01]} 68. Rh6+ {[%emt 0:00:05]} Kb7 {[%emt 0:00:04]} 69. Rh7 {[%emt 0:00:03]} Rg6 {[%emt 0:00:08]} 70. Ka4 {[%emt 0:03:18]} Rd6 {[%emt 0:00:51]} 71. Kb3 {[%emt 0:00:06]} Kb6 {[%emt 0:00:04]} 72. Rh5 {[%emt 0:00:25]} Nd5 {[%emt 0:00:04]} 73. Ka4 {[%emt 0:00:13]} Kc6 {[%emt 0:00:59]} 74. Kb3 {[%emt 0:00:35]} Rg6 {[%emt 0:00:10]} 75. Ka4 {[%emt 0:00:51]} Nb6+ {[%emt 0:00:28]} 76. Ka5 {[%emt 0:00:42]} Nd5 {[%emt 0:01:57]} 77. Ka4 {[%emt 0:00:27]} Rg4 {[%emt 0:00:49]} 78. Rh6+ {[%emt 0:00:06]} Kb7 {[%emt 0:00:05]} 79. Kb5 {[%emt 0:02:09]} Nxb4 {[%emt 0:00:16]} 80. Rh7+ {[%emt 0:00:06]} Kc8 {[%emt 0:00:35]} 81. Kc5 {[%emt 0:01:25]} Na6+ {[%emt 0:00:13]} 82. Kd6 {[%emt 0:00:37]} Rg6+ {[%emt 0:00:09]} 83. Ke5 {[%emt 0:00:00]} Nc7 {[%emt 0:00:04]} 84. Kf5 {[%emt 0:00:05]} Rd6 {[%emt 0:00:36]} 85. Ke5 {[%emt 0:00:01]} Rd1 {[%emt 0:00:13]} 86. Ke4 {[%emt 0:00:05]} Kb7 {[%emt 0:00:07]} 87. Rh6 {[%emt 0:00:18]} Nb5 {[%emt 0:00:16]} 88. Ke5 {[%emt 0:00:34]} Kc7 {[%emt 0:00:05]} 89. Rg6 {[%emt 0:00:51]} Nd6 {[%emt 0:00:05]} 90. Kf4 {[%emt 0:00:18]} Kc6 {[%emt 0:00:12]} 91. Rg5 {[%emt 0:00:10]} Rf1+ {[%emt 0:00:15]} 92. Ke3 {[%emt 0:00:09]} Rh1 {[%emt 0:00:50]} 93. Kd4 {[%emt 0:00:33]} Rh4+ {[%emt 0:01:01]} 94. Kd3 {[%emt 0:00:02]} Nf7 {[%emt 0:00:50]} 95. Rf5 {[%emt 0:00:11]} Nd8 {[%emt 0:00:11]} 96. Rf6+ {[%emt 0:00:17]} Kd5 {[%emt 0:00:04]} 97. Rf5+ {[%emt 0:00:04]} Kd6 {[%emt 0:00:02]} 98. Ra5 {[%emt 0:00:33]} Nc6 {[%emt 0:00:04]} 99. Rg5 {[%emt 0:00:23]} Nb4+ {[%emt 0:00:20]} 100. Ke2 {[%emt 0:00:44]} Nd5 {[%emt 0:00:05]} 101. Rg8 {[%emt 0:00:09]} Rh3 {[%emt 0:00:38]} 102. Rd8+ {[%emt 0:00:13]} Ke5 {[%emt 0:00:10]} 103. Re8+ {[%emt 0:00:02]} Kd4 {[%emt 0:00:04]} 104. Rd8 {[%emt 0:00:03]} Rh5 {[%emt 0:03:16]} 105. Kf3 {[%emt 0:00:25]} Rf5+ {[%emt 0:00:09]} 106. Kg4 {[%emt 0:00:45]} Rf7 {[%emt 0:00:15]} 107. Kg3 {[%emt 0:00:23]} Ke4 {[%emt 0:00:12]} 108. Re8+ {[%emt 0:00:02]} Ne7 {[%emt 0:00:04]} 109. Kg2 {[%emt 0:00:56]} Ke3 {[%emt 0:00:09]} 110. Ra8 {[%emt 0:00:30]} Nf5 {[%emt 0:02:15]} 111. Ra3+ {[%emt 0:00:19]} Ke4 {[%emt 0:00:04]} 112. Ra4+ {[%emt 0:00:08]} Nd4 {[%emt 0:00:09]} 113. Kg3 {[%emt 0:00:21]} Rg7+ {[%emt 0:02:01]} 114. Kf2 {[%emt 0:00:07]} Rg4 {[%emt 0:00:03]} 115. Ra8 {[%emt 0:00:25]} Rf4+ {[%emt 0:00:21]} 116. Kg2 {[%emt 0:00:07]} Rf6 {[%emt 0:02:52]} 117. Ra4 {[%emt 0:00:15]} Rb6 {[%emt 0:01:14]} 118. Kg3 {[%emt 0:00:36]} Rb2 {[%emt 0:00:04]} 119. Rc4 {[%emt 0:01:13]} Ra2 {[%emt 0:01:25]} 120. Rb4 {[%emt 0:00:36]} Ke5 {[%emt 0:00:47]} 121. Rb8 {[%emt 0:00:10]} Nf5+ {[%emt 0:00:13]} 122. Kf3 {[%emt 0:00:20]} Ra3+ {[%emt 0:00:07]} 123. Kf2 {[%emt 0:00:07]} Ke4 {[%emt 0:00:23]} 124. Re8+ {[%emt 0:00:27]} Kf4 {[%emt 0:00:05]} 125. Ke2 {[%emt 0:00:04]} Nd6 {[%emt 0:00:11]} 126. Rd8 {[%emt 0:00:30]} Ke5 {[%emt 0:00:32]} 127. Rd7 {[%emt 0:00:17]} Nf5 {[%emt 0:00:25]} 128. Rd8 {[%emt 0:00:09]} Ng3+ {[%emt 0:00:14]} 129. Kd2 {[%emt 0:00:16]} Ne4+ {[%emt 0:00:03]} 1/2-1/2